bitfinex/quotes_SOLUSD_20250718
["timestamp","ask_amount","ask_price","bid_price","bid_amount"]
[1752799344061,11.6983194,179.2,179.15,0.36]
[1752799344359,0.67,179.21,179.14,35.02215268]
[1752799344360,11.69804545,179.21,179.16,0.36]
[1752799344535,11.69804545,179.21,179.17,29.8]
[1752799345036,6.11790275,179.21,179.17,29.8]
[1752799345234,6.26790275,179.22,179.18,0.36]
[1752799345859,0.15,179.22,179.18,0.36]
[1752799346047,11.84769794,179.22,179.17,35.02105439]
[1752799346355,11.84769794,179.22,179.17,35.38105439]
[1752799346356,6.93790275,179.22,179.17,35.38105439]
[1752799350743,6.11790275,179.21,179.18,0.36]
[1752799351266,6.11790275,179.21,179.18,5.94095132]
[1752799351465,6.11790275,179.21,179.17,35.021197]
[1752799351646,0.15,179.22,179.17,35.381197]
[1752799351848,0.86,179.22,179.17,35.381197]
[1752799352153,6.11790275,179.21,179.17,35.381197]
[1752799352356,6.11790275,179.2,179.17,29.44]
[1752799352557,6.11790275,179.21,179.17,35.38113322]
[1752799352938,6.11790275,179.2,179.17,29.44]
[1752799353448,6.11790275,179.2,179.17,35.38121544]
[1752799353655,6.11790275,179.21,179.17,35.38121544]
[1752799354144,0.15,179.22,179.17,35.02121544]
[1752799354352,6.11790275,179.21,179.18,0.36]
[1752799354862,6.11790275,179.21,179.17,35.02121544]
[1752799355067,6.11790275,179.21,179.17,35.38121544]
[1752799355855,6.26790275,179.22,179.18,0.36]
[1752799357055,6.82790275,179.21,179.17,35.02121544]
[1752799357255,6.11790275,179.21,179.17,35.38121544]
[1752799357568,6.26790275,179.22,179.18,0.36]
[1752799358463,6.26790275,179.22,179.17,35.02121544]
[1752799358464,6.97790275,179.22,179.17,35.02121544]
[1752799358657,6.11790275,179.21,179.17,35.02121544]
[1752799358847,6.82790275,179.21,179.17,29.44]
[1752799359447,0.71,179.2,179.17,29.44]
[1752799360160,6.82790275,179.19,179.17,29.44]
[1752799360947,6.11790275,179.19,179.17,29.44]
[1752799362153,0.71,179.21,179.17,29.44]
[1752799362574,5.72979854,179.22,179.17,29.44]
[1752799362753,6.11790275,179.21,179.17,29.44]
[1752799362961,6.11790275,179.21,179.17,29.8]
[1752799363173,6.11790275,179.2,179.17,29.44]
[1752799363465,6.82790275,179.2,179.17,29.44]
[1752799363879,0.15,179.22,179.17,35.02127172]
[1752799364065,0.15,179.22,179.18,0.36]
[1752799364375,6.26790275,179.22,179.18,0.36]
[1752799364749,6.11790275,179.21,179.17,35.02127172]
[1752799365156,0.15,179.22,179.18,0.36]
[1752799365475,6.11790275,179.21,179.18,5.9409258]
[1752799366463,0.15,179.22,179.18,5.5809258]
[1752799366651,6.11790275,179.21,179.18,5.5809258]
[1752799367370,6.11790275,179.19,179.18,29.4]
[1752799367674,6.11790275,179.2,179.18,29.4]
[1752799367972,0.86,179.22,179.18,29.4]
[1752799368273,6.11790275,179.2,179.18,29.4]
[1752799368970,6.11790275,179.21,179.18,35.34097854]
[1752799369574,0.15,179.22,179.18,34.98097854]
[1752799369758,0.15,179.22,179.19,0.36]
[1752799370355,0.15,179.22,179.2,23.26258672]
[1752799370556,0.15,179.22,179.21,29.4]
[1752799370980,0.15,179.22,179.14,0.36]
[1752799370981,12.55763715,179.22,179.14,0.36]
[1752799371153,6.11790275,179.15,179.1,1.6132]
[1752799371358,6.11790275,179.14,179.11,29.4]
[1752799371591,6.11790275,179.13,179.12,29.4]
[1752799371761,6.11790275,179.15,179.12,29.4]
[1752799373058,6.11790275,179.16,179.12,29.4]
[1752799373258,6.82790275,179.16,179.12,29.4]
[1752799373454,0.71,179.16,179.12,29.4]
[1752799373678,5.58103563,179.18,179.12,34.98276006]
[1752799373881,32.82790275,179.19,179.13,6.11790275]
[1752799374261,6.82790275,179.19,179.13,6.11790275]
[1752799374467,0.71,179.19,179.14,6.11790275]
[1752799374687,0.71,179.19,179.15,29.4]
[1752799374977,12.40865541,179.19,179.15,29.4]
[1752799375174,0.71,179.18,179.15,29.4]
[1752799376587,6.11790275,179.16,179.12,0.03]
[1752799376881,6.11790275,179.15,179.13,29.4]
[1752799377386,6.82790275,179.15,179.13,29.4]
[1752799377562,12.40986033,179.15,179.13,29.4]
[1752799378060,0.71,179.15,179.13,29.4]
[1752799378271,6.29124867,179.18,179.13,29.4]
[1752799378480,0.71,179.17,179.13,29.4]
[1752799378789,6.11790275,179.17,179.13,29.4]
[1752799378978,0.71,179.16,179.13,29.4]
[1752799379177,0.7,179.15,179.13,29.4]
[1752799379494,6.81790275,179.17,179.13,29.4]
[1752799379695,11.6994643,179.17,179.13,29.4]
[1752799379987,0.7,179.16,179.13,29.4]
[1752799380580,6.11790275,179.18,179.13,29.4]
[1752799380882,6.81790275,179.18,179.13,29.4]
[1752799381089,0.7,179.17,179.13,29.4]
[1752799381778,0.7,179.16,179.13,29.4]
[1752799382086,6.11790275,179.17,179.13,29.4]
[1752799382268,0.7,179.15,179.13,29.4]
[1752799382471,6.11790275,179.16,179.13,29.4]
[1752799382673,0.7,179.15,179.13,29.4]
[1752799383079,0.7,179.18,179.13,35.51790275]
[1752799383395,0.7,179.18,179.13,41.46035653]
[1752799383581,6.28103358,179.18,179.13,41.46035653]
[1752799383888,0.7,179.17,179.13,29.4]
[1752799384070,0.7,179.17,179.13,34.98249204]
[1752799384492,0.7,179.2,179.14,6.47790275]
[1752799384789,0.7,179.2,179.15,6.11790275]
[1752799385093,6.11790275,179.19,179.16,29.4]
[1752799385284,6.81790275,179.19,179.16,29.4]
[1752799385488,0.7,179.18,179.17,29.4]
[1752799385787,5.58042439,179.2,179.17,29.4]
[1752799385993,12.39832714,179.2,179.17,29.4]
[1752799386292,0.7,179.19,179.17,29.4]
[1752799386796,0.7,179.19,179.18,0.098484]
[1752799387790,6.81790275,179.19,179.18,0.098484]
[1752799388172,0.7,179.19,179.18,0.098484]
[1752799388367,6.81790275,179.19,179.18,0.098484]
[1752799389083,12.39857131,179.19,179.18,0.098484]
[1752799390799,12.39857131,179.19,179.12,0.03]
[1752799390981,6.11790275,179.15,179.12,0.03]
[1752799391183,0.7,179.18,179.12,0.03]
[1752799391184,5.58129151,179.17,179.12,0.03]
[1752799391400,26.0,179.2,179.12,0.03]
[1752799391595,32.11790275,179.2,179.12,17.17468397]
[1752799391775,6.11790275,179.17,179.12,0.03]
[1752799392096,6.11790275,179.15,179.13,29.38]
[1752799392313,0.7,179.17,179.13,29.38]
[1752799392468,0.7,179.19,179.13,29.74]
[1752799392800,6.11790275,179.18,179.13,29.74]
[1752799392984,6.81790275,179.19,179.13,35.85790275]
[1752799393303,12.39858289,179.19,179.13,41.44019675]
[1752799394196,6.81790275,179.19,179.13,41.44019675]
[1752799394377,12.39857716,179.19,179.13,41.44019675]
[1752799394888,0.7,179.19,179.13,41.44019675]
[1752799395093,5.5806748,179.19,179.13,41.44019675]
[1752799395279,11.69857755,179.19,179.13,41.44019675]
[1752799395596,12.39857755,179.19,179.13,34.962294]
[1752799395798,6.81790275,179.18,179.13,29.38]
[1752799396103,6.81790275,179.18,179.13,34.96245956]
[1752799397476,6.81790275,179.18,179.13,29.38]
[1752799397477,6.81790275,179.17,179.13,29.38]
[1752799397693,6.81790275,179.16,179.14,29.38]
[1752799398392,0.7,179.15,179.14,29.38]
[1752799399078,6.11790275,179.16,179.14,29.38]
[1752799399284,6.81790275,179.16,179.14,29.38]
[1752799400302,12.39952859,179.16,179.14,29.38]
[1752799400483,0.7,179.15,179.14,29.38]
[1752799400679,6.81790275,179.15,179.14,29.38]
[1752799401195,0.7,179.15,179.14,29.38]
[1752799401401,6.81790275,179.15,179.14,29.38]
[1752799403101,12.39981734,179.15,179.14,29.38]
[1752799403493,6.28191459,179.15,179.12,0.03]
[1752799403692,6.11790275,179.13,179.12,0.03]
[1752799404300,0.7,179.17,179.12,0.39]
[1752799404498,6.11790275,179.18,179.13,29.38]
[1752799404700,6.11790275,179.16,179.13,29.38]
[1752799404908,6.81790275,179.16,179.13,29.38]
[1752799405309,0.7,179.16,179.13,29.38]
[1752799405608,6.28161564,179.16,179.13,29.38]
[1752799405908,11.69951839,179.16,179.13,29.38]
[1752799406083,6.28161564,179.16,179.13,29.38]
[1752799406410,12.39951839,179.16,179.13,29.38]
[1752799406697,6.28161564,179.16,179.13,29.38]
[1752799406905,12.39951839,179.16,179.13,29.38]
[1752799407106,0.7,179.15,179.13,29.38]
[1752799407301,12.39951839,179.16,179.13,29.38]
[1752799407609,5.58161564,179.16,179.13,29.38]
[1752799407907,6.11790275,179.18,179.13,29.74]
[1752799408104,5.58035714,179.2,179.13,29.74]
[1752799408295,6.81790275,179.18,179.13,29.74]
[1752799408606,0.7,179.17,179.13,29.38]
[1752799408783,6.81790275,179.17,179.13,29.38]
[1752799408988,0.7,179.16,179.13,29.38]
[1752799409792,5.58130784,179.17,179.13,29.38]
[1752799409992,12.39921059,179.17,179.13,29.38]
[1752799410312,41.57163079,179.21,179.13,29.74]
[1752799410313,6.11790275,179.18,179.13,29.74]
[1752799410617,0.7,179.17,179.13,29.38]
[1752799411691,6.2815412,179.17,179.13,29.38]
[1752799413307,6.11790275,179.18,179.13,29.38]
[1752799413506,11.6979485,179.21,179.15,6.11790275]
[1752799413710,6.11790275,179.17,179.16,29.36]
[1752799413910,12.39919426,179.17,179.16,29.36]
[1752799414106,12.39919426,179.17,179.12,0.03]
[1752799414315,0.7,179.16,179.12,0.03]
[1752799414508,6.81790275,179.16,179.13,29.36]
[1752799415041,6.28129151,179.17,179.13,29.36]
[1752799415213,0.7,179.16,179.13,29.36]
[1752799415810,5.58191459,179.15,179.13,29.36]
[1752799416213,6.28165802,179.16,179.13,29.36]
[1752799416519,12.39956077,179.16,179.13,29.36]
[1752799417400,0.7,179.16,179.13,29.36]
[1752799417799,11.69923766,179.17,179.13,29.36]
[1752799417994,6.11790275,179.2,179.14,0.36]
[1752799418507,6.11790275,179.19,179.14,0.36]
[1752799418840,6.28004575,179.21,179.14,6.47790275]
[1752799419002,6.11790275,179.18,179.13,29.36]
[1752799419197,6.81790275,179.17,179.13,29.36]
[1752799419398,6.81790275,179.16,179.13,29.36]
[1752799419700,6.81790275,179.15,179.13,29.36]
[1752799419906,0.7,179.14,179.13,29.36]
[1752799421418,11.69968744,179.16,179.13,29.36]
[1752799421616,12.39968744,179.16,179.13,29.36]
[1752799421994,0.7,179.15,179.13,29.36]
[1752799422812,5.58178469,179.16,179.13,29.36]
[1752799423016,0.7,179.15,179.13,29.36]
[1752799423908,0.06,179.17,179.13,29.36]
[1752799424330,0.06,179.17,179.13,34.9425039]
[1752799425022,0.06,179.17,179.13,35.3025039]
[1752799425411,0.06,179.17,179.14,0.36]
[1752799426527,0.06,179.17,179.15,0.36]
[1752799426713,0.06,179.17,179.16,29.36]
[1752799429032,0.06,179.17,179.16,34.94160303]
[1752799429231,0.06,179.17,179.16,29.36]
[1752799429435,0.06,179.17,179.16,35.30160303]
[1752799430322,0.06,179.17,179.14,1.6238]
[1752799430527,6.87790275,179.17,179.15,29.36]
[1752799430833,0.06,179.17,179.15,29.36]
[1752799431132,0.06,179.17,179.16,0.36]
[1752799432607,0.06,179.17,179.15,34.9418438]
[1752799432808,0.06,179.17,179.15,35.3018438]
[1752799433339,0.06,179.17,179.15,29.36]
[1752799433340,6.81790275,179.16,179.15,29.36]
[1752799433841,0.7,179.16,179.15,29.36]
[1752799434044,6.81790275,179.16,179.15,29.36]
[1752799434534,12.39950578,179.16,179.15,29.36]
[1752799435916,0.7,179.16,179.15,29.36]
[1752799436121,6.81790275,179.16,179.15,29.36]
[1752799436928,12.39950578,179.16,179.15,29.36]
[1752799437340,6.28160303,179.16,179.15,29.36]
[1752799437615,6.81790275,179.16,179.15,29.36]
[1752799438240,6.11790275,179.16,179.15,29.36]
[1752799438446,6.81790275,179.16,179.15,29.36]
[1752799438644,0.06,179.17,179.15,29.36]
[1752799438944,6.11790275,179.16,179.15,29.36]
[1752799439318,6.80790275,179.16,179.15,29.36]
[1752799440223,0.69,179.16,179.15,29.36]
[1752799440531,12.38950578,179.16,179.15,29.36]
[1752799440931,5.64134342,179.17,179.15,29.36]
[1752799441143,6.11790275,179.16,179.15,29.36]
[1752799441542,0.06,179.17,179.15,29.36]
[1752799441748,0.06,179.17,179.16,0.36]
[1752799442144,0.06,179.17,179.15,29.36]
[1752799442731,0.69,179.16,179.15,29.36]
[1752799443044,6.80790275,179.16,179.15,29.36]
[1752799443424,0.69,179.16,179.15,29.36]
[1752799443639,6.80790275,179.16,179.15,29.36]
[1752799443844,12.38950578,179.16,179.15,29.36]
[1752799446733,26.34351337,179.16,179.12,0.03]
[1752799446934,6.11790275,179.13,179.12,29.39]
[1752799447132,6.80790275,179.13,179.12,29.39]
[1752799447336,12.39044057,179.13,179.12,29.39]
[1752799449434,6.27253782,179.13,179.12,29.39]
[1752799449634,12.39044057,179.13,179.12,29.39]
[1752799451848,5.58210985,179.15,179.12,29.39]
[1752799452054,6.11790275,179.15,179.12,29.39]
[1752799452242,6.80790275,179.14,179.12,29.39]
[1752799452451,0.69,179.14,179.12,29.39]
[1752799452651,6.80790275,179.14,179.12,29.39]
[1752799452855,6.11790275,179.14,179.12,29.39]
[1752799453235,6.11790275,179.16,179.12,35.33277696]
[1752799453629,5.64136687,179.17,179.12,35.33277696]
[1752799453852,6.11790275,179.16,179.12,35.33277696]
[1752799454562,6.17790275,179.17,179.13,0.36]
[1752799454857,0.69,179.16,179.12,29.39]
[1752799455039,6.80790275,179.15,179.12,29.39]
[1752799455241,0.69,179.15,179.12,29.39]
[1752799455557,6.80790275,179.15,179.12,29.39]
[1752799456643,6.11790275,179.14,179.12,29.39]
[1752799456847,0.69,179.14,179.12,29.39]
[1752799457041,6.80790275,179.14,179.12,29.39]
[1752799457742,6.11790275,179.14,179.12,29.39]
[1752799458556,6.80790275,179.14,179.12,29.39]
[1752799458862,6.11790275,179.14,179.12,29.39]
[1752799459065,5.58198374,179.15,179.12,29.39]
[1752799459359,6.11790275,179.14,179.12,29.39]
[1752799459740,12.38988649,179.15,179.12,29.39]
[1752799459959,6.27198374,179.15,179.12,29.39]
[1752799460132,12.38988649,179.15,179.12,29.39]
[1752799461356,6.27198374,179.15,179.12,29.39]
[1752799461537,6.11790275,179.14,179.12,29.39]
[1752799461743,6.80790275,179.14,179.12,29.39]
[1752799462344,6.11790275,179.13,179.12,29.39]
[1752799462941,6.80790275,179.13,179.12,29.39]
[1752799463649,12.39044057,179.13,179.12,29.39]
[1752799463987,0.75,179.17,179.12,29.39]
[1752799464274,6.80790275,179.16,179.12,29.39]
[1752799464477,5.64136252,179.17,179.12,0.03]
[1752799464478,32.11790275,179.13,179.12,0.03]
[1752799464946,26.69,179.13,179.12,0.03]
[1752799465349,32.80790275,179.13,179.12,0.03]
[1752799465549,38.39044057,179.13,179.12,0.03]
[1752799467068,32.27253782,179.13,179.12,0.03]
[1752799467772,38.39044057,179.13,179.12,0.03]
[1752799468140,32.27253782,179.13,179.12,0.03]
[1752799468469,38.39044057,179.13,179.12,0.03]
[1752799468972,32.27253782,179.13,179.12,0.03]
[1752799469149,12.39044057,179.13,179.12,0.03]
[1752799469344,38.39044057,179.13,179.12,0.03]
[1752799470469,33.92583782,179.13,179.12,0.03]
[1752799470777,40.04374057,179.13,179.12,0.03]
[1752799472183,38.39044057,179.13,179.12,0.03]
[1752799473267,6.11790275,179.13,179.12,0.03]
[1752799473567,15.66652877,179.17,179.12,0.03]
[1752799473568,0.69,179.16,179.12,29.51]
[1752799473750,6.11790275,179.15,179.12,29.51]
[1752799473952,6.80790275,179.15,179.12,29.51]
[1752799474568,6.11790275,179.14,179.12,29.51]
[1752799475169,6.11790275,179.16,179.12,29.51]
[1752799475344,6.80790275,179.15,179.12,29.51]
[1752799475550,6.11790275,179.13,179.12,29.51]
[1752799475750,12.39044057,179.13,179.12,29.51]
[1752799475968,6.80790275,179.13,179.12,29.51]
[1752799476475,11.70019748,179.14,179.12,29.51]
[1752799476780,6.11790275,179.13,179.12,29.51]
[1752799477361,6.80790275,179.13,179.12,29.51]
[1752799477765,12.39044057,179.13,179.12,29.51]
[1752799478364,11.70044057,179.13,179.12,29.51]
[1752799478579,6.11790275,179.14,179.12,29.51]
[1752799478888,5.58181462,179.16,179.12,29.51]
[1752799479091,6.11790275,179.13,179.12,29.51]
[1752799479981,6.80790275,179.13,179.12,29.51]
[1752799480165,12.39044057,179.13,179.12,29.51]
[1752799481902,0.69,179.13,179.12,29.51]
[1752799482072,6.80790275,179.13,179.12,29.51]
[1752799482270,12.39044057,179.13,179.12,29.51]
[1752799484191,11.70044057,179.13,179.12,29.51]
[1752799484572,6.11790275,179.13,179.12,29.51]
[1752799485398,0.06,179.17,179.12,35.45284773]
[1752799485572,6.11790275,179.15,179.12,35.45284773]
[1752799485762,6.11790275,179.14,179.12,35.45284773]
[1752799486386,0.06,179.17,179.12,35.45284773]
[1752799486599,0.06,179.17,179.13,0.36]
[1752799486895,6.11790275,179.16,179.14,0.36]
[1752799487569,6.17790275,179.17,179.15,0.36]
[1752799487903,0.06,179.17,179.16,29.52]
[1752799488578,6.17790275,179.17,179.16,29.52]
[1752799488791,0.06,179.17,179.16,29.52]
[1752799488989,0.06,179.17,179.16,29.88]
[1752799489762,0.06,179.17,179.16,35.46160303]
[1752799490878,0.06,179.17,179.16,35.10160303]
[1752799491075,0.06,179.17,179.16,35.46160303]
[1752799493884,0.15,179.22,179.17,8.0442]
[1752799494090,0.15,179.22,179.21,5.58004575]
[1752799494275,0.15,179.22,179.21,35.34004575]
[1752799494477,0.15,179.22,179.21,35.70004575]
[1752799498098,1e-08,179.25,179.24,23.97379577]
[1752799498277,6.11790275,179.32,179.27,26.0]
[1752799498473,0.69,179.34,179.28,30.16]
[1752799498677,0.2,179.35,179.29,0.36]
[1752799498894,0.2,179.35,179.3,35.8004]
[1752799499077,0.2,179.35,179.31,0.36]
[1752799499276,0.2,179.35,179.32,31.7748]
[1752799499481,0.2,179.35,179.33,0.36]
[1752799499685,0.2,179.35,179.34,30.62]
[1752799500103,0.2,179.35,179.34,36.19600089]
[1752799500481,0.2,179.35,179.34,30.28]
[1752799500680,6.98790275,179.35,179.3,5.57696167]
[1752799500984,0.87,179.35,179.31,30.4]
[1752799501191,0.67,179.34,179.28,1.6401]
[1752799501505,0.67,179.34,179.28,30.48]
[1752799501714,26.0,179.32,179.22,25.7401]
[1752799502005,6.11790275,179.3,179.23,30.52]
[1752799502187,11.69701455,179.24,179.23,30.52]
[1752799502507,0.67,179.24,179.23,30.52]
[1752799502687,12.36701455,179.24,179.15,0.36]
[1752799502891,6.11790275,179.17,179.16,30.82]
[1752799503503,0.67,179.21,179.16,30.82]
[1752799503684,6.11790275,179.17,179.16,30.82]
[1752799503884,6.78790275,179.17,179.16,30.82]
[1752799504286,6.11790275,179.17,179.16,30.82]
[1752799504487,0.67,179.21,179.16,30.82]
[1752799504689,6.11790275,179.19,179.16,30.82]
[1752799505289,0.67,179.24,179.17,0.36]
[1752799505494,0.67,179.26,179.18,6.11790275]
[1752799505702,6.11790275,179.24,179.19,31.24]
[1752799505890,6.11790275,179.23,179.19,30.88]
[1752799506096,0.67,179.26,179.2,0.36]
[1752799506412,26.0,179.28,179.2,5.94030395]
[1752799506713,6.11790275,179.22,179.19,30.88]
[1752799506913,6.11790275,179.2,179.19,30.88]
[1752799507104,0.67,179.2,179.19,30.88]
[1752799507296,6.78790275,179.2,179.12,26.03]
[1752799507500,6.11790275,179.16,179.13,30.96]
[1752799507705,0.67,179.2,179.14,0.36]
[1752799507706,6.11790275,179.17,179.14,0.36]
[1752799507902,6.11790275,179.18,179.15,0.36]
[1752799508104,6.11790275,179.19,179.15,0.36]
[1752799508414,6.11790275,179.19,179.16,0.36]
[1752799508601,6.11790275,179.2,179.17,30.96]
[1752799508801,6.11790275,179.22,179.17,30.96]
[1752799509008,0.67,179.26,179.18,0.36]
[1752799509317,6.11790275,179.23,179.18,0.36]
[1752799509517,0.67,179.22,179.14,26.36]
[1752799509694,6.11790275,179.18,179.17,31.02]
[1752799510191,12.36888277,179.18,179.17,31.02]
[1752799510397,6.78790275,179.18,179.17,31.02]
[1752799510715,0.67,179.18,179.17,31.02]
[1752799510896,0.67,179.21,179.17,31.02]
[1752799511095,6.11790275,179.18,179.17,31.02]
[1752799511496,6.11790275,179.18,179.13,5.58249146]
[1752799511497,6.11790275,179.18,179.14,31.22]
[1752799512494,6.11790275,179.15,179.14,31.22]
[1752799512697,32.78790275,179.15,179.12,0.03]
[1752799512902,6.11790275,179.13,179.12,0.03]
[1752799513316,0.67,179.14,179.12,0.03]
[1752799513615,6.11790275,179.15,179.12,0.03]
[1752799514192,37.69831816,179.2,179.12,0.03]
[1752799514193,6.11790275,179.14,179.12,0.03]
[1752799514396,6.11790275,179.13,179.12,0.03]
[1752799514593,6.78790275,179.13,179.12,0.03]
[1752799515801,0.67,179.13,179.12,0.03]
[1752799516218,6.78790275,179.13,179.12,0.03]
[1752799517120,12.37044057,179.13,179.12,0.03]
[1752799517306,0.67,179.13,179.12,0.03]
[1752799517628,6.78790275,179.13,179.12,0.03]
[1752799518500,0.67,179.13,179.12,0.03]
[1752799518701,6.78790275,179.13,179.12,0.03]
[1752799519217,6.11790275,179.17,179.12,0.03]
[1752799519419,6.78790275,179.18,179.12,0.39]
[1752799519605,6.78790275,179.18,179.12,6.50790275]
[1752799519805,0.67,179.18,179.12,6.14790275]
[1752799520113,6.78790275,179.2,179.14,6.11790275]
[1752799520314,0.67,179.2,179.16,5.58160303]
[1752799520829,6.11790275,179.22,179.16,42.93950578]
[1752799521006,6.78790275,179.23,179.17,6.47790275]
[1752799521320,5.57873456,179.26,179.17,6.47790275]
[1752799521321,2.2856,179.29,179.21,6.11790275]
[1752799521524,6.11790275,179.28,179.22,31.22]
[1752799521823,0.67,179.29,179.22,37.33790275]
[1752799522033,0.67,179.31,179.24,6.11790275]
[1752799522209,0.67,179.31,179.22,31.58]
[1752799522210,0.67,179.31,179.22,31.22]
[1752799522519,6.11790275,179.29,179.25,5.57880055]
[1752799522897,9.7726523,179.29,179.25,5.57880055]
[1752799523098,9.7726523,179.29,179.24,5.57909719]
[1752799523423,10.4426523,179.28,179.22,36.79949101]
[1752799523624,9.7726523,179.29,179.23,10.1326523]
[1752799523799,0.67,179.32,179.23,10.1326523]
[1752799524008,0.67,179.32,179.25,9.7726523]
[1752799524325,0.06,179.34,179.26,9.7726523]
[1752799524538,0.06,179.34,179.28,9.7726523]
[1752799525204,0.06,179.34,179.29,0.36]
[1752799525406,0.06,179.34,179.3,0.36]
[1752799525808,0.06,179.34,179.31,0.36]
[1752799526122,0.06,179.34,179.32,31.3]
[1752799526307,9.7726523,179.33,179.32,31.3]
[1752799526637,10.4426523,179.33,179.28,31.3]
[1752799526803,9.7726523,179.29,179.28,31.3]
[1752799527003,10.4426523,179.29,179.23,5.579378]
[1752799527204,0.67,179.32,179.24,41.1126523]
[1752799527505,9.7726523,179.31,179.25,9.7726523]
[1752799527921,9.7726523,179.3,179.24,41.1126523]
[1752799528123,9.7726523,179.27,179.24,31.34]
[1752799528311,9.7726523,179.27,179.23,5.579378]
[1752799528516,0.67,179.3,179.24,31.36]
[1752799528742,9.7726523,179.29,179.24,31.36]
[1752799528944,0.67,179.28,179.24,31.36]
[1752799529129,9.7726523,179.27,179.24,31.36]
[1752799529429,9.7726523,179.28,179.24,31.36]
[1752799529631,9.7726523,179.3,179.25,0.36]
[1752799529806,9.7726523,179.31,179.26,0.36]
[1752799530006,9.7726523,179.32,179.27,10.1326523]
[1752799530208,0.06,179.34,179.28,31.36]
[1752799530425,9.8326523,179.34,179.29,5.57755591]
[1752799530628,9.7726523,179.32,179.3,31.36]
[1752799531415,9.7726523,179.32,179.29,5.57755591]
[1752799531622,9.7726523,179.32,179.3,31.34]
[1752799531907,5.63616935,179.34,179.27,5.57792337]
[1752799532232,0.7,179.31,179.28,31.34]
[1752799532428,10.4726523,179.31,179.28,31.34]
[1752799532824,0.7,179.31,179.28,31.34]
[1752799533014,9.7726523,179.3,179.28,31.34]
[1752799533930,10.4726523,179.29,179.27,31.3]
[1752799534235,9.7726523,179.28,179.27,31.3]
[1752799534611,9.7726523,179.32,179.27,37.23817816]
[1752799534906,0.06,179.34,179.31,9.7726523]
[1752799535111,0.06,179.34,179.32,41.0526523]
[1752799535319,0.06,179.34,179.33,31.4]
[1752799536731,0.06,179.34,179.33,36.97631182]
[1752799540028,0.06,179.34,179.33,31.4]
[1752799540236,0.06,179.34,179.33,36.97631182]
[1752799540433,0.06,179.34,179.33,31.4]
[1752799541026,0.76,179.34,179.33,31.4]
[1752799541236,10.5326523,179.34,179.33,31.4]
[1752799541537,10.5326523,179.34,179.27,25.64310973]
[1752799541538,10.5326523,179.34,179.25,0.36]
[1752799541730,9.7726523,179.28,179.26,31.34]
[1752799541931,10.4726523,179.27,179.26,31.34]
[1752799542132,1.584,179.34,179.26,31.34]
[1752799542133,0.06,179.34,179.26,31.34]
[1752799542433,9.8326523,179.34,179.28,9.7726523]
[1752799542674,9.7726523,179.33,179.27,31.92]
[1752799542820,0.7,179.32,179.27,37.49796102]
[1752799543144,9.7726523,179.31,179.27,5.57796102]
[1752799543332,0.7,179.32,179.28,31.92]
[1752799543527,9.7726523,179.31,179.28,31.92]
[1752799543841,0.7,179.32,179.28,31.92]
[1752799544614,9.7726523,179.31,179.28,31.92]
[1752799544836,0.06,179.34,179.28,37.85778376]
[1752799545041,0.76,179.34,179.28,37.49778376]
[1752799545521,9.7726523,179.32,179.28,37.49778376]
[1752799545722,0.06,179.34,179.29,0.36]
[1752799545922,0.06,179.34,179.3,0.36]